[Event "Late-Titled-Tuesday-Blitz-October-24-2023"]
[Site "Chess.com"]
[Date "2023.10.24"]
[Round "3"]
[White "colegiodemadrid"]
[Black "carloseduar100"]
[Result "0-1"]
[WhiteElo "2457"]
[BlackElo "2289"]
[TimeControl "180+1"]
[EndTime "14:29:17 PDT"]
[Termination "carloseduar100 won by resignation"]

1. e4 {[%clk 0:03:00.9]} 1... e6 {[%clk 0:02:59.8]} 2. d4 {[%clk 0:02:59.3]}
2... d5 {[%clk 0:03:00.7]} 3. e5 {[%clk 0:02:59.9]} 3... c5 {[%clk 0:03:00.9]}
4. c3 {[%clk 0:03:00.6]} 4... Nc6 {[%clk 0:03:01.8]} 5. Nf3 {[%clk 0:03:00.9]}
5... Qb6 {[%clk 0:03:02.5]} 6. a3 {[%clk 0:03:01.4]} 6... Nh6 {[%clk 0:03:02.6]}
7. b4 {[%clk 0:03:01.8]} 7... cxd4 {[%clk 0:03:02.9]} 8. cxd4 {[%clk 0:03:01.2]}
8... Nf5 {[%clk 0:03:03.6]} 9. Bb2 {[%clk 0:03:01.8]} 9... Bd7 {[%clk
0:02:58.7]} 10. g4 {[%clk 0:03:01.7]} 10... Nfe7 {[%clk 0:02:57.8]} 11. Nc3
{[%clk 0:03:01.5]} 11... h5 {[%clk 0:02:55.8]} 12. g5 {[%clk 0:02:59.1]} 12...
Nf5 {[%clk 0:02:55.7]} 13. Na4 {[%clk 0:02:58]} 13... Qd8 {[%clk 0:02:48.5]} 14.
Bd3 {[%clk 0:02:57.4]} 14... g6 {[%clk 0:02:16.9]} 15. Nc5 {[%clk 0:02:52.3]}
15... Bxc5 {[%clk 0:02:16.4]} 16. dxc5 {[%clk 0:02:53.2]} 16... h4 {[%clk
0:02:16.3]} 17. Rg1 {[%clk 0:02:50.3]} 17... h3 {[%clk 0:02:10.6]} 18. Qd2
{[%clk 0:02:47.7]} 18... a5 {[%clk 0:02:09.8]} 19. b5 {[%clk 0:02:45.8]} 19...
Nce7 {[%clk 0:02:10.1]} 20. a4 {[%clk 0:02:46]} 20... Qc7 {[%clk 0:02:06.5]} 21.
Rc1 {[%clk 0:02:44.9]} 21... Kf8 {[%clk 0:02:03]} 22. Qf4 {[%clk 0:02:39.3]}
22... Kg7 {[%clk 0:02:00.1]} 23. Rg4 {[%clk 0:02:35.9]} 23... Rh5 {[%clk
0:01:59.6]} 24. Nd4 {[%clk 0:02:25.9]} 24... Nxd4 {[%clk 0:01:55]} 25. Bxd4
{[%clk 0:02:26.8]} 25... Nf5 {[%clk 0:01:55.3]} 26. Bxf5 {[%clk 0:02:13.3]}
26... gxf5 {[%clk 0:01:55.5]} 27. Rh4 {[%clk 0:02:13.6]} 27... Rah8 {[%clk
0:01:55.4]} 28. Rxh5 {[%clk 0:02:13.7]} 28... Rxh5 {[%clk 0:01:56.3]} 29. Ke2
{[%clk 0:02:07.3]} 29... Qd8 {[%clk 0:01:56.3]} 30. Rg1 {[%clk 0:02:06.3]} 30...
Kg6 {[%clk 0:01:55.4]} 31. Be3 {[%clk 0:02:01.9]} 31... Qh8 {[%clk 0:01:54.9]}
32. Qd4 {[%clk 0:02:00.6]} 32... Rh4 {[%clk 0:01:51.7]} 33. f4 {[%clk 0:01:59]}
33... Qh5+ {[%clk 0:01:48]} 34. Kf2 {[%clk 0:01:57.7]} 34... Rg4 {[%clk
0:01:48]} 35. Ke1 {[%clk 0:01:45.1]} 35... Rxg1+ {[%clk 0:01:40.8]} 36. Bxg1
{[%clk 0:01:46]} 36... Qf3 {[%clk 0:01:41]} 37. Qe3 {[%clk 0:01:43.6]} 37... Qg2
{[%clk 0:01:37.5]} 38. Kd1 {[%clk 0:01:20.9]} 38... Qa2 {[%clk 0:01:30.7]} 39.
Qxh3 {[%clk 0:01:17.4]} 39... Qxa4+ {[%clk 0:01:30.3]} 40. Kd2 {[%clk
0:01:11.3]} 40... Qxf4+ {[%clk 0:01:29.2]} 41. Be3 {[%clk 0:01:09.9]} 41... Qb4+
{[%clk 0:01:23.2]} 42. Kd1 {[%clk 0:01:08.5]} 42... f4 {[%clk 0:01:10.3]} 43.
Qh6+ {[%clk 0:01:04]} 43... Kf5 {[%clk 0:01:10.6]} 44. Qf6+ {[%clk 0:00:59.6]}
44... Kg4 {[%clk 0:01:09.3]} 45. h3+ {[%clk 0:00:59.5]} 45... Kg3 {[%clk
0:01:06.8]} 46. Bd2 {[%clk 0:00:56.7]} 46... Qb1+ {[%clk 0:01:06.6]} 47. Bc1
{[%clk 0:00:52.7]} 47... Qd3+ {[%clk 0:01:06.5]} 48. Bd2 {[%clk 0:00:52.8]}
48... Qf3+ {[%clk 0:01:02.3]} 49. Kc1 {[%clk 0:00:50]} 49... Bxb5 {[%clk
0:01:02.5]} 50. Qxf7 {[%clk 0:00:42]} 50... Qa3+ {[%clk 0:00:57.7]} 51. Kd1
{[%clk 0:00:40.5]} 51... Ba4+ {[%clk 0:00:57.9]} 52. Ke1 {[%clk 0:00:41]} 52...
Qf3 {[%clk 0:00:54]} 53. Qxf4+ {[%clk 0:00:34.1]} 53... Qxf4 {[%clk 0:00:54.1]}
54. Bxf4+ {[%clk 0:00:35]} 54... Kxf4 {[%clk 0:00:55]} 55. g6 {[%clk 0:00:35.9]}
55... Be8 {[%clk 0:00:54.9]} 56. g7 {[%clk 0:00:36.2]} 56... Bf7 {[%clk
0:00:55.3]} 0-1

[Event "Late-Titled-Tuesday-Blitz-October-24-2023"]
[Site "Chess.com"]
[Date "2023.10.24"]
[Round "3"]
[White "sergeikim"]
[Black "szachmistrz2500"]
[Result "0-1"]
[WhiteElo "2590"]
[BlackElo "2429"]
[TimeControl "180+1"]
[EndTime "14:29:18 PDT"]
[Termination "szachmistrz2500 won on time"]

1. d4 {[%clk 0:03:00.9]} 1... Nf6 {[%clk 0:02:59.5]} 2. c4 {[%clk 0:03:00.9]}
2... e6 {[%clk 0:02:59.2]} 3. Nc3 {[%clk 0:03:00.9]} 3... d5 {[%clk 0:02:55.6]}
4. Nf3 {[%clk 0:03:00.3]} 4... Bb4 {[%clk 0:02:55.3]} 5. e3 {[%clk 0:02:59.7]}
5... O-O {[%clk 0:02:52.7]} 6. Bd3 {[%clk 0:02:59.6]} 6... b6 {[%clk 0:02:48.4]}
7. cxd5 {[%clk 0:02:55.5]} 7... exd5 {[%clk 0:02:47.8]} 8. Ne5 {[%clk
0:02:50.1]} 8... Bb7 {[%clk 0:02:43.9]} 9. O-O {[%clk 0:02:49.3]} 9... Nbd7
{[%clk 0:02:43.4]} 10. f4 {[%clk 0:02:49.1]} 10... a6 {[%clk 0:02:42.3]} 11. Qf3
{[%clk 0:02:41.7]} 11... Bd6 {[%clk 0:02:41.8]} 12. Qh3 {[%clk 0:02:38.1]} 12...
Bc8 {[%clk 0:02:29.1]} 13. Qf3 {[%clk 0:02:12.5]} 13... Bb7 {[%clk 0:02:25.4]}
14. Bd2 {[%clk 0:02:09]} 14... c5 {[%clk 0:02:24.4]} 15. Rad1 {[%clk 0:02:01.3]}
15... b5 {[%clk 0:02:17.6]} 16. a3 {[%clk 0:01:41.9]} 16... b4 {[%clk
0:02:15.5]} 17. axb4 {[%clk 0:01:41.5]} 17... cxb4 {[%clk 0:02:15.7]} 18. Ne2
{[%clk 0:01:40.7]} 18... Ne4 {[%clk 0:02:14.9]} 19. Bxe4 {[%clk 0:01:12.6]}
19... dxe4 {[%clk 0:02:14.2]} 20. Qh3 {[%clk 0:01:12.4]} 20... Nf6 {[%clk
0:02:11]} 21. Ng3 {[%clk 0:01:06.5]} 21... a5 {[%clk 0:02:08.9]} 22. Nf5 {[%clk
0:01:01.7]} 22... Bc8 {[%clk 0:02:08.6]} 23. g4 {[%clk 0:01:01.4]} 23... a4
{[%clk 0:01:53.9]} 24. Nxd6 {[%clk 0:00:36.8]} 24... Qxd6 {[%clk 0:01:53.2]} 25.
f5 {[%clk 0:00:36.6]} 25... a3 {[%clk 0:01:38]} 26. bxa3 {[%clk 0:00:34.8]}
26... bxa3 {[%clk 0:01:38.2]} 27. g5 {[%clk 0:00:29.1]} 27... Nd5 {[%clk
0:01:38]} 28. Qh4 {[%clk 0:00:26.6]} 28... f6 {[%clk 0:01:34.7]} 29. g6 {[%clk
0:00:20.6]} 29... h6 {[%clk 0:01:33.9]} 30. Nf7 {[%clk 0:00:20.7]} 30... Qe7
{[%clk 0:01:27.8]} 31. Ra1 {[%clk 0:00:19.6]} 31... a2 {[%clk 0:01:22.9]} 32.
Rfc1 {[%clk 0:00:18.5]} 32... Bxf5 {[%clk 0:01:19.5]} 33. Qg3 {[%clk 0:00:09.3]}
33... h5 {[%clk 0:00:55.8]} 34. Rc5 {[%clk 0:00:07.3]} 34... Be6 {[%clk
0:00:49.5]} 35. Nd6 {[%clk 0:00:05.1]} 35... f5 {[%clk 0:00:43.5]} 36. Nc4
{[%clk 0:00:01.8]} 36... f4 {[%clk 0:00:41.6]} 37. exf4 {[%clk 0:00:01.6]} 37...
e3 {[%clk 0:00:41.8]} 0-1

[Event "Late-Titled-Tuesday-Blitz-October-24-2023"]
[Site "Chess.com"]
[Date "2023.10.24"]
[Round "3"]
[White "stolencandy13"]
[Black "Andrej2004"]
[Result "1-0"]
[WhiteElo "2587"]
[BlackElo "2513"]
[TimeControl "180+1"]
[EndTime "14:29:23 PDT"]
[Termination "stolencandy13 won by resignation"]

1. d4 {[%clk 0:03:00.9]} 1... b6 {[%clk 0:03:00.3]} 2. Bf4 {[%clk 0:02:59.9]}
2... Bb7 {[%clk 0:03:00.7]} 3. Nc3 {[%clk 0:02:56.3]} 3... Nf6 {[%clk
0:03:01.1]} 4. Nf3 {[%clk 0:02:55.3]} 4... g6 {[%clk 0:03:01.2]} 5. Qd2 {[%clk
0:02:54.4]} 5... h6 {[%clk 0:02:58.7]} 6. h4 {[%clk 0:02:54.2]} 6... d6 {[%clk
0:02:58.4]} 7. e3 {[%clk 0:02:54.2]} 7... Nbd7 {[%clk 0:02:57.5]} 8. O-O-O
{[%clk 0:02:53.9]} 8... Bg7 {[%clk 0:02:57.9]} 9. Bc4 {[%clk 0:02:53.4]} 9... e6
{[%clk 0:02:54.9]} 10. Bb3 {[%clk 0:02:47.9]} 10... Qe7 {[%clk 0:02:54.4]} 11.
Kb1 {[%clk 0:02:46.8]} 11... O-O-O {[%clk 0:02:54.1]} 12. Rhe1 {[%clk
0:02:43.6]} 12... Kb8 {[%clk 0:02:54.2]} 13. e4 {[%clk 0:02:44]} 13... e5 {[%clk
0:02:53.7]} 14. Bg3 {[%clk 0:02:38.6]} 14... exd4 {[%clk 0:02:47]} 15. Nxd4
{[%clk 0:02:38.6]} 15... Rhe8 {[%clk 0:02:46.3]} 16. f3 {[%clk 0:02:38.6]} 16...
Nh5 {[%clk 0:02:45]} 17. Bf2 {[%clk 0:02:33.6]} 17... Be5 {[%clk 0:02:37.5]} 18.
Nd5 {[%clk 0:02:30.5]} 18... Qf8 {[%clk 0:02:34.2]} 19. Ba4 {[%clk 0:02:25.1]}
19... Bxd4 {[%clk 0:02:17.5]} 20. Qxd4 {[%clk 0:02:03.3]} 20... Qg7 {[%clk
0:02:11.4]} 21. Qxg7 {[%clk 0:01:56.7]} 21... Nxg7 {[%clk 0:02:12.3]} 22. Bxd7
{[%clk 0:01:57]} 22... Rxd7 {[%clk 0:02:13.2]} 23. Nf6 {[%clk 0:01:57.5]} 23...
Rde7 {[%clk 0:02:12.3]} 24. Nxe8 {[%clk 0:01:57.7]} 24... Rxe8 {[%clk
0:02:13.1]} 25. Be3 {[%clk 0:01:55.1]} 25... h5 {[%clk 0:02:12.6]} 26. c4 {[%clk
0:01:53.5]} 26... Kc8 {[%clk 0:02:11.4]} 27. b3 {[%clk 0:01:53.2]} 27... Ne6
{[%clk 0:02:09.6]} 28. Kb2 {[%clk 0:01:50.6]} 28... a5 {[%clk 0:02:09.3]} 29.
Kc3 {[%clk 0:01:50.8]} 29... Bc6 {[%clk 0:02:08.1]} 30. a3 {[%clk 0:01:51]}
30... Kb7 {[%clk 0:02:07.9]} 31. b4 {[%clk 0:01:51.4]} 31... axb4+ {[%clk
0:02:05.1]} 32. axb4 {[%clk 0:01:52.3]} 32... Rg8 {[%clk 0:02:00.2]} 33. Rb1
{[%clk 0:01:49.6]} 33... f5 {[%clk 0:01:57.3]} 34. exf5 {[%clk 0:01:44.2]} 34...
gxf5 {[%clk 0:01:58.2]} 35. Re2 {[%clk 0:01:30.2]} 35... Bd7 {[%clk 0:01:52.5]}
36. Rbb2 {[%clk 0:01:29]} 36... Ra8 {[%clk 0:01:48.8]} 37. c5 {[%clk 0:01:29]}
37... d5 {[%clk 0:01:44.9]} 38. cxb6 {[%clk 0:01:28.6]} 38... cxb6 {[%clk
0:01:45.8]} 39. Rbd2 {[%clk 0:01:26.4]} 39... Kc6 {[%clk 0:01:41.9]} 40. Bg5
{[%clk 0:01:23.7]} 40... Kd6 {[%clk 0:01:37.4]} 41. Bf6 {[%clk 0:01:16.1]} 41...
Bb5 {[%clk 0:01:34.2]} 42. Re5 {[%clk 0:01:13.5]} 42... Bc4 {[%clk 0:01:26.6]}
43. Rxf5 {[%clk 0:01:11]} 43... Ra3+ {[%clk 0:01:24.8]} 44. Kb2 {[%clk
0:01:10.5]} 44... Rb3+ {[%clk 0:01:24.4]} 45. Kc2 {[%clk 0:01:10.7]} 45... Rxb4
{[%clk 0:01:22.8]} 46. Rxh5 {[%clk 0:01:05.9]} 46... b5 {[%clk 0:01:22.9]} 47.
Rh7 {[%clk 0:01:01]} 47... Ra4 {[%clk 0:01:22.5]} 48. h5 {[%clk 0:00:57.6]}
48... b4 {[%clk 0:01:20.3]} 49. h6 {[%clk 0:00:57.5]} 49... b3+ {[%clk
0:01:20.7]} 50. Kb1 {[%clk 0:00:54.6]} 50... Nf4 {[%clk 0:01:08.7]} 51. Rb7
{[%clk 0:00:48.5]} 51... Bd3+ {[%clk 0:01:05.9]} 52. Rxd3 {[%clk 0:00:43.7]}
52... Nxd3 {[%clk 0:01:03.1]} 53. h7 {[%clk 0:00:42.5]} 53... Rc4 {[%clk
0:00:52.6]} 54. Rxb3 {[%clk 0:00:39.2]} 54... Rc1+ {[%clk 0:00:52.5]} 55. Ka2
{[%clk 0:00:38.9]} 55... Rc2+ {[%clk 0:00:51.8]} 56. Ka3 {[%clk 0:00:35.2]}
56... Nc1 {[%clk 0:00:52.1]} 57. h8=Q {[%clk 0:00:29.6]} 57... Ra2+ {[%clk
0:00:52.1]} 58. Kb4 {[%clk 0:00:30]} 58... Nd3+ {[%clk 0:00:52]} 59. Rxd3 {[%clk
0:00:29.5]} 1-0

[Event "Late-Titled-Tuesday-Blitz-October-24-2023"]
[Site "Chess.com"]
[Date "2023.10.24"]
[Round "3"]
[White "Inepton_Fermion"]
[Black "Darko-Dimitrijevic"]
[Result "1-0"]
[WhiteElo "2363"]
[BlackElo "2118"]
[TimeControl "180+1"]
[EndTime "14:29:23 PDT"]
[Termination "Inepton_Fermion won on time"]

1. Nf3 {[%clk 0:03:00.9]} 1... c5 {[%clk 0:02:58]} 2. b3 {[%clk 0:02:47.4]} 2...
d5 {[%clk 0:02:53.6]} 3. e3 {[%clk 0:02:46.3]} 3... Nc6 {[%clk 0:02:51.8]} 4.
Bb5 {[%clk 0:02:46.1]} 4... a6 {[%clk 0:02:48.1]} 5. Bxc6+ {[%clk 0:02:44.3]}
5... bxc6 {[%clk 0:02:48.2]} 6. Bb2 {[%clk 0:02:36.7]} 6... f6 {[%clk
0:02:40.2]} 7. d4 {[%clk 0:02:26.1]} 7... e6 {[%clk 0:02:37.2]} 8. O-O {[%clk
0:02:25.6]} 8... Bd6 {[%clk 0:02:31.3]} 9. c4 {[%clk 0:02:21.7]} 9... Ne7 {[%clk
0:02:29.3]} 10. Nc3 {[%clk 0:02:20.3]} 10... O-O {[%clk 0:02:27.6]} 11. Qe2
{[%clk 0:02:15.7]} 11... Qe8 {[%clk 0:02:14.8]} 12. Rac1 {[%clk 0:02:09.4]}
12... Qh5 {[%clk 0:02:12.2]} 13. Rfd1 {[%clk 0:01:42.4]} 13... Rd8 {[%clk
0:02:09.1]} 14. dxc5 {[%clk 0:01:37.4]} 14... Bxc5 {[%clk 0:02:07.5]} 15. Na4
{[%clk 0:01:35.5]} 15... Ba7 {[%clk 0:01:48.8]} 16. e4 {[%clk 0:01:31.3]} 16...
Bb7 {[%clk 0:01:43.1]} 17. cxd5 {[%clk 0:01:28.7]} 17... exd5 {[%clk 0:01:41.3]}
18. Nc5 {[%clk 0:01:19.5]} 18... Bxc5 {[%clk 0:01:29.9]} 19. Rxc5 {[%clk
0:01:20.4]} 19... Qf7 {[%clk 0:01:21]} 20. e5 {[%clk 0:01:16.6]} 20... fxe5
{[%clk 0:01:15.1]} 21. Nxe5 {[%clk 0:01:16.2]} 21... Qe6 {[%clk 0:01:15.2]} 22.
Re1 {[%clk 0:01:10]} 22... Re8 {[%clk 0:01:06.4]} 23. f4 {[%clk 0:00:52]} 23...
Nf5 {[%clk 0:01:02.9]} 24. Qf2 {[%clk 0:00:36.8]} 24... Nd6 {[%clk 0:00:56.9]}
25. Rcc1 {[%clk 0:00:28.7]} 25... Ne4 {[%clk 0:00:55.8]} 26. Qb6 {[%clk
0:00:29.3]} 26... Rab8 {[%clk 0:00:38.1]} 27. Nxc6 {[%clk 0:00:28.7]} 27... Bxc6
{[%clk 0:00:35.5]} 28. Qxc6 {[%clk 0:00:28.9]} 28... Qf5 {[%clk 0:00:32.6]} 29.
Be5 {[%clk 0:00:26.6]} 29... Rbd8 {[%clk 0:00:29.1]} 30. Qxa6 {[%clk 0:00:20.6]}
30... Re6 {[%clk 0:00:10.7]} 31. Qa5 {[%clk 0:00:18.2]} 1-0

[Event "Late-Titled-Tuesday-Blitz-October-24-2023"]
[Site "Chess.com"]
[Date "2023.10.24"]
[Round "3"]
[White "Arseniy_Nesterov"]
[Black "zajka-molotok"]
[Result "1-0"]
[WhiteElo "2836"]
[BlackElo "2551"]
[TimeControl "180+1"]
[EndTime "14:29:24 PDT"]
[Termination "Arseniy_Nesterov won by resignation"]

1. d4 {[%clk 0:03:00.9]} 1... Nf6 {[%clk 0:02:58.7]} 2. c4 {[%clk 0:03:01.1]}
2... e6 {[%clk 0:02:58.8]} 3. Nf3 {[%clk 0:03:00.8]} 3... c5 {[%clk 0:02:58.7]}
4. d5 {[%clk 0:03:01]} 4... d6 {[%clk 0:02:59.1]} 5. Nc3 {[%clk 0:03:01]} 5...
exd5 {[%clk 0:02:59.2]} 6. cxd5 {[%clk 0:03:01.9]} 6... g6 {[%clk 0:02:59.1]} 7.
h3 {[%clk 0:03:01.7]} 7... Bg7 {[%clk 0:02:58.2]} 8. Bf4 {[%clk 0:03:01.6]} 8...
O-O {[%clk 0:02:54.5]} 9. e3 {[%clk 0:03:01.7]} 9... Na6 {[%clk 0:02:48.6]} 10.
Be2 {[%clk 0:02:47]} 10... Nc7 {[%clk 0:02:44]} 11. O-O {[%clk 0:02:44]} 11...
Re8 {[%clk 0:02:35.3]} 12. Bh2 {[%clk 0:02:31.3]} 12... a6 {[%clk 0:02:28.8]}
13. a4 {[%clk 0:02:31.3]} 13... Ne4 {[%clk 0:02:27.6]} 14. Nxe4 {[%clk
0:02:28.6]} 14... Rxe4 {[%clk 0:02:28.5]} 15. Nd2 {[%clk 0:02:28.4]} 15... Rb4
{[%clk 0:02:18.1]} 16. Nc4 {[%clk 0:02:28]} 16... Ne8 {[%clk 0:02:08.9]} 17. a5
{[%clk 0:02:21]} 17... Bd7 {[%clk 0:01:50.8]} 18. Nxd6 {[%clk 0:02:12.3]} 18...
Bxb2 {[%clk 0:01:47.5]} 19. Nxe8 {[%clk 0:01:31.4]} 19... Bxe8 {[%clk 0:01:43]}
20. Ra2 {[%clk 0:01:27.1]} 20... Bb5 {[%clk 0:01:34]} 21. Bxb5 {[%clk
0:01:19.7]} 21... axb5 {[%clk 0:01:30.7]} 22. Qc2 {[%clk 0:01:15.2]} 22... Qxd5
{[%clk 0:01:26.3]} 23. Rxb2 {[%clk 0:01:14.2]} 23... Rxb2 {[%clk 0:01:20.3]} 24.
Qxb2 {[%clk 0:01:15.1]} 24... Rxa5 {[%clk 0:01:20.4]} 25. Qf6 {[%clk 0:00:59.8]}
25... Ra6 {[%clk 0:01:19.9]} 26. e4 {[%clk 0:00:38.4]} 26... Qxe4 {[%clk
0:00:57.9]} 27. Qd8+ {[%clk 0:00:38]} 27... Kg7 {[%clk 0:00:57]} 28. Bd6 {[%clk
0:00:37.9]} 28... h5 {[%clk 0:00:36.2]} 29. Qf8+ {[%clk 0:00:26.4]} 29... Kf6
{[%clk 0:00:35.3]} 30. Bxc5 {[%clk 0:00:24.5]} 30... Rc6 {[%clk 0:00:32.7]} 31.
Rd1 {[%clk 0:00:21.4]} 31... Qc2 {[%clk 0:00:23.5]} 32. Rd6+ {[%clk 0:00:18.2]}
32... Rxd6 {[%clk 0:00:22.3]} 33. Qxd6+ {[%clk 0:00:18.5]} 33... Kg7 {[%clk
0:00:19.9]} 34. Bd4+ {[%clk 0:00:18.2]} 34... Kh7 {[%clk 0:00:17.7]} 35. Qf6
{[%clk 0:00:15.9]} 35... Qc1+ {[%clk 0:00:15.4]} 36. Kh2 {[%clk 0:00:16.1]}
36... Qc7+ {[%clk 0:00:16.2]} 37. Be5 {[%clk 0:00:16.3]} 1-0

[Event "Late-Titled-Tuesday-Blitz-October-24-2023"]
[Site "Chess.com"]
[Date "2023.10.24"]
[Round "3"]
[White "Zhbugnoimt"]
[Black "YellowJacek"]
[Result "1/2-1/2"]
[WhiteElo "2539"]
[BlackElo "2297"]
[TimeControl "180+1"]
[EndTime "14:29:25 PDT"]
[Termination "Game drawn by repetition"]

1. e4 {[%clk 0:03:00.9]} 1... e5 {[%clk 0:02:56.7]} 2. Nf3 {[%clk 0:03:00.9]}
2... Nf6 {[%clk 0:02:57.1]} 3. d4 {[%clk 0:03:00]} 3... Nxe4 {[%clk 0:02:55.4]}
4. Bd3 {[%clk 0:03:00.6]} 4... d5 {[%clk 0:02:55.1]} 5. Nxe5 {[%clk 0:03:00.3]}
5... Nd7 {[%clk 0:02:53.8]} 6. Nc3 {[%clk 0:02:59.1]} 6... Nxc3 {[%clk
0:02:51.6]} 7. bxc3 {[%clk 0:03:00]} 7... Nxe5 {[%clk 0:02:50.4]} 8. dxe5 {[%clk
0:03:00.9]} 8... Bc5 {[%clk 0:02:44.7]} 9. Qf3 {[%clk 0:02:59.9]} 9... O-O
{[%clk 0:02:42.7]} 10. O-O {[%clk 0:02:45.9]} 10... c6 {[%clk 0:02:22]} 11. Rb1
{[%clk 0:02:44.9]} 11... b5 {[%clk 0:02:18.2]} 12. Re1 {[%clk 0:02:23.5]} 12...
Be6 {[%clk 0:02:01.5]} 13. Qh5 {[%clk 0:02:15]} 13... g6 {[%clk 0:02:00.5]} 14.
Qh6 {[%clk 0:02:15.6]} 14... f5 {[%clk 0:01:44.7]} 15. exf6 {[%clk 0:02:05.6]}
15... Qxf6 {[%clk 0:01:43.3]} 16. Be3 {[%clk 0:02:06.1]} 16... Bxe3 {[%clk
0:01:29]} 17. Qxe3 {[%clk 0:02:07]} 17... Bf5 {[%clk 0:01:14.9]} 18. Qc5 {[%clk
0:01:54.5]} 18... Bxd3 {[%clk 0:01:02.4]} 19. cxd3 {[%clk 0:01:54.3]} 19... a6
{[%clk 0:01:00.9]} 20. Re2 {[%clk 0:01:51.4]} 20... Rae8 {[%clk 0:00:59.4]} 21.
Rbe1 {[%clk 0:01:51.9]} 21... Rxe2 {[%clk 0:00:59.1]} 22. Rxe2 {[%clk
0:01:52.8]} 22... Rf7 {[%clk 0:00:57.2]} 23. f3 {[%clk 0:01:51.8]} 23... Kg7
{[%clk 0:00:53.7]} 24. h3 {[%clk 0:01:48.6]} 24... h5 {[%clk 0:00:52.8]} 25. d4
{[%clk 0:01:06.2]} 25... h4 {[%clk 0:00:44.4]} 26. Qa3 {[%clk 0:01:03.7]} 26...
Qf4 {[%clk 0:00:34.5]} 27. Kf2 {[%clk 0:00:50.6]} 27... Qg3+ {[%clk 0:00:33.1]}
28. Kf1 {[%clk 0:00:51.2]} 28... Qf4 {[%clk 0:00:33.4]} 29. Qb2 {[%clk
0:00:38.2]} 29... g5 {[%clk 0:00:32.7]} 30. Qc2 {[%clk 0:00:21.3]} 30... Kf6
{[%clk 0:00:30.9]} 31. Qd1 {[%clk 0:00:18.3]} 31... Re7 {[%clk 0:00:30.2]} 32.
Rxe7 {[%clk 0:00:17]} 32... Kxe7 {[%clk 0:00:31.1]} 33. Qe2+ {[%clk 0:00:17.6]}
33... Kd6 {[%clk 0:00:31.5]} 34. Kf2 {[%clk 0:00:16]} 34... Qg3+ {[%clk
0:00:31.2]} 35. Kf1 {[%clk 0:00:16.4]} 35... Qf4 {[%clk 0:00:32.1]} 36. Qd3
{[%clk 0:00:15.9]} 36... Qc1+ {[%clk 0:00:31.7]} 37. Kf2 {[%clk 0:00:15.5]}
37... Qf4 {[%clk 0:00:32.5]} 38. Qg6+ {[%clk 0:00:15.1]} 38... Kc7 {[%clk
0:00:32.5]} 39. Qg7+ {[%clk 0:00:15.8]} 39... Kb6 {[%clk 0:00:33]} 40. Qe7
{[%clk 0:00:13.8]} 40... Qd2+ {[%clk 0:00:31.1]} 41. Kf1 {[%clk 0:00:14.2]}
41... Qxc3 {[%clk 0:00:32]} 42. Qd8+ {[%clk 0:00:13.8]} 42... Kb7 {[%clk
0:00:31.9]} 43. Qd7+ {[%clk 0:00:14]} 43... Kb6 {[%clk 0:00:32.2]} 44. Qd8+
{[%clk 0:00:14.5]} 44... Kb7 {[%clk 0:00:31.6]} 45. Qe7+ {[%clk 0:00:13.9]}
45... Kb8 {[%clk 0:00:32.5]} 46. Qd8+ {[%clk 0:00:12.6]} 46... Kb7 {[%clk
0:00:32.7]} 1/2-1/2

[Event "Late-Titled-Tuesday-Blitz-October-24-2023"]
[Site "Chess.com"]
[Date "2023.10.24"]
[Round "3"]
[White "Eternauta2400"]
[Black "ArturoCaceres"]
[Result "1-0"]
[WhiteElo "2729"]
[BlackElo "2500"]
[TimeControl "180+1"]
[EndTime "14:29:28 PDT"]
[Termination "Eternauta2400 won by resignation"]

1. c4 {[%clk 0:03:00.9]} 1... a6 {[%clk 0:02:35.8]} 2. Nc3 {[%clk 0:02:57.4]}
2... b6 {[%clk 0:02:24.3]} 3. Nf3 {[%clk 0:02:56.1]} 3... Bb7 {[%clk 0:02:24.9]}
4. g3 {[%clk 0:02:55.7]} 4... e6 {[%clk 0:02:25.6]} 5. Bg2 {[%clk 0:02:54.7]}
5... Nf6 {[%clk 0:02:26.3]} 6. O-O {[%clk 0:02:54.5]} 6... Be7 {[%clk
0:02:26.9]} 7. d4 {[%clk 0:02:54.2]} 7... O-O {[%clk 0:02:27.3]} 8. Qc2 {[%clk
0:02:54.1]} 8... d5 {[%clk 0:02:27.6]} 9. cxd5 {[%clk 0:02:50.5]} 9... Nxd5
{[%clk 0:02:22.9]} 10. Nxd5 {[%clk 0:02:50.3]} 10... Bxd5 {[%clk 0:02:23.3]} 11.
e4 {[%clk 0:02:49.6]} 11... Bb7 {[%clk 0:02:23.2]} 12. Rd1 {[%clk 0:02:49.4]}
12... Nd7 {[%clk 0:02:23]} 13. Bf4 {[%clk 0:02:46]} 13... Rc8 {[%clk 0:02:22.5]}
14. Qe2 {[%clk 0:02:41.7]} 14... h6 {[%clk 0:02:19.6]} 15. h4 {[%clk 0:02:40.3]}
15... Bd6 {[%clk 0:02:19.7]} 16. e5 {[%clk 0:02:35.3]} 16... Be7 {[%clk
0:02:13.4]} 17. Rd2 {[%clk 0:02:30.2]} 17... Bd5 {[%clk 0:02:12.4]} 18. a3
{[%clk 0:02:28.9]} 18... b5 {[%clk 0:02:12.6]} 19. Rad1 {[%clk 0:02:27.9]} 19...
Nb6 {[%clk 0:02:12.5]} 20. h5 {[%clk 0:02:24.5]} 20... Re8 {[%clk 0:02:12.4]}
21. Rc1 {[%clk 0:02:18.5]} 21... Nc4 {[%clk 0:02:04.2]} 22. Rdd1 {[%clk
0:02:16.9]} 22... Qd7 {[%clk 0:02:01.5]} 23. Nh2 {[%clk 0:02:11.7]} 23... Bxg2
{[%clk 0:02:00.8]} 24. Kxg2 {[%clk 0:02:12.6]} 24... Qd5+ {[%clk 0:02:00.9]} 25.
Kg1 {[%clk 0:02:11.3]} 25... Red8 {[%clk 0:01:45.6]} 26. Ng4 {[%clk 0:02:10.4]}
26... Kh8 {[%clk 0:01:23.4]} 27. Kh2 {[%clk 0:02:04.8]} 27... Bf8 {[%clk
0:01:21.8]} 28. Bxh6 {[%clk 0:01:52]} 28... c5 {[%clk 0:00:49.2]} 29. Bg5 {[%clk
0:01:49.2]} 29... cxd4 {[%clk 0:00:39.7]} 30. Bxd8 {[%clk 0:01:48.7]} 30... Rxd8
{[%clk 0:00:40.6]} 31. Rd3 {[%clk 0:01:35.8]} 31... Bc5 {[%clk 0:00:17.7]} 32.
h6 {[%clk 0:01:31.7]} 32... Kh7 {[%clk 0:00:12.5]} 33. hxg7 {[%clk 0:01:30.3]}
33... Kxg7 {[%clk 0:00:13.4]} 34. Kg1 {[%clk 0:01:19.3]} 34... Rh8 {[%clk
0:00:12.9]} 35. Qf3 {[%clk 0:01:15.1]} 35... Qxf3 {[%clk 0:00:06.3]} 36. Rxf3
{[%clk 0:01:16]} 36... Bb6 {[%clk 0:00:04.8]} 37. Nf6 {[%clk 0:01:14.1]} 37...
Nxb2 {[%clk 0:00:03.8]} 38. Rc6 {[%clk 0:01:09.9]} 38... d3 {[%clk 0:00:04.4]}
39. Ne4 {[%clk 0:01:05.6]} 39... Bd4 {[%clk 0:00:03.2]} 40. Rc7 {[%clk
0:01:01.9]} 40... Rf8 {[%clk 0:00:02.8]} 41. Rd7 {[%clk 0:00:57.3]} 41... Bxe5
{[%clk 0:00:03.1]} 42. Ng5 {[%clk 0:00:57.7]} 42... Bf6 {[%clk 0:00:02.3]} 43.
Nxe6+ {[%clk 0:00:57.5]} 43... Kg8 {[%clk 0:00:01.9]} 44. Nxf8 {[%clk
0:00:57.4]} 44... Bc3 {[%clk 0:00:02.1]} 45. Rdxd3 {[%clk 0:00:49.5]} 45... Nxd3
{[%clk 0:00:01.8]} 46. Rxd3 {[%clk 0:00:50.4]} 46... Bg7 {[%clk 0:00:02.2]} 47.
Nd7 {[%clk 0:00:49.1]} 1-0